fUSD/lending_fUSD_20260614
["ID","MTS","AMOUNT","RATE_DAILY","PERIOD"]
[425046151,1781445999000,-400.0,0.00037992,30]
[425046169,1781445999000,-400.0,0.00037992,30]
[425046168,1781445999000,-400.0,0.00037992,30]
[425046166,1781445999000,-400.0,0.00037992,30]
[425046167,1781445999000,-400.0,0.00037992,30]
[425046165,1781445999000,-482.05077912,0.00037992,30]
[425046164,1781445999000,-400.0,0.00037992,30]
[425046163,1781445999000,-400.0,0.00037992,30]
[425046162,1781445999000,-400.0,0.00037992,30]
[425046153,1781445999000,-400.0,0.00037992,30]
[425046159,1781445999000,-400.0,0.00037992,30]
[425046160,1781445999000,-400.0,0.00037992,30]
[425046158,1781445999000,-400.0,0.00037992,30]
[425046155,1781445999000,-400.0,0.00037992,30]
[425046157,1781445999000,-400.0,0.00037992,30]
[425046156,1781445999000,-400.0,0.00037992,30]
[425046154,1781445999000,-400.0,0.00037992,30]
[425046161,1781445999000,-400.0,0.00037992,30]
[425046185,1781446000000,-188.0,0.00037992,120]
[425046184,1781446000000,-162.34718172,0.00037992,120]
[425046183,1781446000000,-232.76288211,0.00037992,90]
[425046182,1781446000000,-14340.79057551,0.00037992,120]
[425046181,1781446000000,-250.65734203,0.00037992,120]
[425046179,1781446000000,-634.16787015,0.00037992,90]
[425046180,1781446000000,-157.33143224,0.00037992,120]
[425046178,1781446000000,-218.0,0.00037992,60]
[425046174,1781446000000,-163.35047273,0.00037992,120]
[425046177,1781446000000,-1436.0823,0.00037992,120]
[425046176,1781446000000,-178.5029244,0.00037992,120]
[425046173,1781446000000,-234.40721436,0.00037992,120]
[425046172,1781446000000,-68222.99627318,0.00037992,120]
[425046171,1781446000000,-400.0,0.00037992,30]
[425046170,1781446000000,-400.0,0.00037992,30]
[425046188,1781446000000,-872.98738676,0.00037992,30]
[425046175,1781446000000,-1062.0,0.00037992,120]
[425046186,1781446000000,-180.19098425,0.00037992,120]
[425046187,1781446000000,-278.47638308,0.00037992,30]
[425046189,1781446000000,-331.04901787,0.00037992,30]
[425046206,1781446000000,-502.65059861,0.00037992,120]
[425046205,1781446000000,-794.25911148,0.00037992,90]
[425046203,1781446000000,-1270.58586686,0.00037992,120]
[425046204,1781446000000,-394.20370534,0.00037992,60]
[425046202,1781446000000,-304.87,0.00037992,120]
[425046201,1781446000000,-629.495858,0.00037992,70]
[425046200,1781446000000,-2000000.0,0.00037992,60]
[425046197,1781446000000,-370.42274284,0.00037992,30]
[425046207,1781446000000,-347.23651371,0.00037992,120]
[425046198,1781446000000,-1613.0,0.00037992,120]
[425046195,1781446000000,-1154.95765313,0.00037992,30]
[425046196,1781446000000,-793.43243494,0.00037992,30]
[425046193,1781446000000,-14900.86983177,0.00037992,120]
[425046194,1781446000000,-544.53661371,0.00037992,30]
[425046191,1781446000000,-430.18147594,0.00037992,30]
[425046190,1781446000000,-748.27418729,0.00037992,30]
[425046192,1781446000000,-176.83765418,0.00037992,30]
[425046199,1781446000000,-215.24358876,0.00037992,120]
[425046218,1781446001000,-1159.38002002,0.00037992,120]
[425046217,1781446001000,-100000.0,0.00037992,120]
[425046222,1781446001000,-800.0,0.00037992,31]
[425046221,1781446001000,-800.0,0.00037992,31]
[425046223,1781446001000,-339.85470247,0.00037992,31]
[425046219,1781446001000,-423.32494306,0.00037992,65]
[425046220,1781446001000,-800.0,0.00037992,31]
[425046216,1781446001000,-5000.0,0.00037992,120]
[425046213,1781446001000,-3137.3510641,0.00037992,60]
[425046214,1781446001000,-209.92278806,0.00037992,30]
[425046212,1781446001000,-410.60196689,0.00037992,90]
[425046209,1781446001000,-1290.62201661,0.00037992,120]
[425046210,1781446001000,-592.36322954,0.00037992,120]
[425046211,1781446001000,-1041.98506368,0.00037992,31]
[425046208,1781446001000,-249.66569505,0.00037992,120]
[425046224,1781446001000,-800.0,0.00037992,31]
[425046215,1781446001000,-3000.0,0.00037992,120]
[425046225,1781446001000,-800.0,0.00037992,31]
[425046226,1781446001000,-800.0,0.00037992,31]
[425046246,1781446001000,-1367.47,0.00037992,120]
[425046227,1781446001000,-800.0,0.00037992,31]
[425046244,1781446001000,-2443.23203973,0.00037992,120]
[425046245,1781446001000,-435.10214729,0.00037992,120]
[425046241,1781446001000,-201.93290292,0.00037992,120]
[425046242,1781446001000,-2043.08152408,0.00037992,120]
[425046240,1781446001000,-488.0,0.00037992,60]
[425046239,1781446001000,-101000.0,0.00037992,120]
[425046237,1781446001000,-50000.0,0.00037992,54]
[425046238,1781446001000,-50000.0,0.00037992,55]
[425046243,1781446001000,-21818.60209928,0.00037992,120]
[425046235,1781446001000,-50000.0,0.00037992,52]
[425046236,1781446001000,-50000.0,0.00037992,53]
[425046231,1781446001000,-824.8976691,0.00037992,31]
[425046230,1781446001000,-800.0,0.00037992,31]
[425046229,1781446001000,-800.0,0.00037992,31]
[425046228,1781446001000,-800.0,0.00037992,31]
[425046233,1781446001000,-7891.62364633,0.00037992,31]
[425046234,1781446001000,-50000.0,0.00037992,49]
[425046232,1781446001000,-159.68287551,0.00037992,120]
[425046257,1781446002000,-500.0,0.00037992,120]
[425046263,1781446002000,-282.0,0.00037992,120]
[425046262,1781446002000,-266.30866125,0.00037992,120]
[425046261,1781446002000,-500.0,0.00037992,120]
[425046260,1781446002000,-500.0,0.00037992,120]
[425046259,1781446002000,-500.0,0.00037992,120]
[425046256,1781446002000,-500.0,0.00037992,120]
[425046258,1781446002000,-500.0,0.00037992,120]
[425046269,1781446002000,-500.0,0.00037992,120]
[425046255,1781446002000,-500.0,0.00037992,120]
[425046254,1781446002000,-300.15266474,0.00037992,30]
[425046253,1781446002000,-21529.31114775,0.00037992,90]
[425046250,1781446002000,-199.08,0.00037992,120]
[425046248,1781446002000,-3008.41,0.00037992,120]
[425046249,1781446002000,-6034.16,0.00037992,30]
[425046251,1781446002000,-171.74180297,0.00037992,120]
[425046247,1781446002000,-1000.0,0.00037992,31]
[425046252,1781446002000,-139388.20841497,0.00037992,49]
[425046265,1781446002000,-2799.13937551,0.00037992,60]
[425046271,1781446002000,-810.57698649,0.00037992,120]
[425046266,1781446002000,-3903.44313983,0.00037992,120]
[425046283,1781446002000,-527.67,0.00037992,120]
[425046285,1781446002000,-527.67,0.00037992,120]
[425046284,1781446002000,-527.67,0.00037992,120]
[425046282,1781446002000,-527.67,0.00037992,120]
[425046281,1781446002000,-527.67,0.00037992,120]
[425046279,1781446002000,-573.40361861,0.00037992,120]
[425046264,1781446002000,-87478.71152408,0.00037992,120]
[425046278,1781446002000,-6756.18297696,0.00037992,60]
[425046275,1781446002000,-500.0,0.00037992,120]
[425046280,1781446002000,-527.67,0.00037992,120]
[425046276,1781446002000,-500.0,0.00037992,120]
[425046273,1781446002000,-228.108989,0.00037992,30]
[425046274,1781446002000,-500.0,0.00037992,120]
[425046272,1781446002000,-1998.80083982,0.00037992,120]
[425046268,1781446002000,-149344.05220911,0.00037992,120]
[425046267,1781446002000,-1394.08683566,0.00037992,120]
[425046270,1781446002000,-153.57619039,0.00037992,120]
[425046277,1781446002000,-500.0,0.00037992,120]
[425046297,1781446003000,-527.71,0.00037992,120]
[425046301,1781446003000,-16888.0,0.00037992,120]
[425046299,1781446003000,-33933.21,0.00037992,30]
[425046300,1781446003000,-5000.0,0.00037992,120]
[425046298,1781446003000,-82546.13639188,0.00037992,30]
[425046296,1781446003000,-527.67,0.00037992,120]
[425046294,1781446003000,-527.67,0.00037992,120]
[425046303,1781446003000,-16888.0,0.00037992,120]
[425046291,1781446003000,-527.67,0.00037992,120]
[425046293,1781446003000,-527.67,0.00037992,120]
[425046292,1781446003000,-527.67,0.00037992,120]
[425046290,1781446003000,-527.67,0.00037992,120]
[425046287,1781446003000,-527.67,0.00037992,120]
[425046288,1781446003000,-527.67,0.00037992,120]
[425046286,1781446003000,-527.67,0.00037992,120]
[425046295,1781446003000,-527.67,0.00037992,120]
[425046302,1781446003000,-16888.0,0.00037992,120]
[425046289,1781446003000,-527.67,0.00037992,120]
[425046305,1781446003000,-16888.0,0.00037992,120]
[425046304,1781446003000,-16888.0,0.00037992,120]
[425046319,1781446003000,-2600.71976174,0.00037992,120]
[425046317,1781446003000,-500.096651,0.00037992,120]
[425046321,1781446003000,-4852.8812429,0.00037992,120]
[425046318,1781446003000,-614701.04979452,0.00037992,61]
[425046316,1781446003000,-10000.0,0.00037992,120]
[425046312,1781446003000,-7971.75107501,0.00037992,120]
[425046314,1781446003000,-2483.64708143,0.00037992,120]
[425046320,1781446003000,-6346.29566235,0.00037992,120]
[425046313,1781446003000,-2928.88041377,0.00037992,120]
[425046311,1781446003000,-2507.47232606,0.00037992,120]
[425046309,1781446003000,-8135.92233281,0.00037992,120]
[425046310,1781446003000,-2950.28197635,0.00037992,120]
[425046307,1781446003000,-4500.0,0.00037992,120]
[425046308,1781446003000,-5000.0,0.00037992,40]
[425046306,1781446003000,-16888.0,0.00037992,120]
[425046315,1781446003000,-157.7538773,0.00037992,30]
[425046332,1781446004000,-252.7375144,0.00037992,120]
[425046333,1781446004000,-172.5,0.00037992,60]
[425046330,1781446004000,-194.3045506,0.00037992,30]
[425046331,1781446004000,-349.01,0.00037992,120]
[425046329,1781446004000,-1546.4014,0.00037992,120]
[425046327,1781446004000,-173.23009602,0.00037992,120]
[425046325,1781446004000,-224.0,0.00037992,120]
[425046326,1781446004000,-196.12402262,0.00037992,120]
[425046323,1781446004000,-368213.54,0.00037992,120]
[425046324,1781446004000,-2000.11300834,0.00037992,120]
[425046322,1781446004000,-4206.9353614,0.00037992,120]
[425046335,1781446004000,-1126.0,0.00037992,30]
[425046328,1781446004000,-283.5257117,0.00037992,60]
[425046336,1781446004000,-1126.0,0.00037992,30]
[425046334,1781446004000,-1126.0,0.00037992,30]
[425046348,1781446004000,-150.82093814,0.00037992,120]
[425046351,1781446004000,-307.0,0.00037992,120]
[425046350,1781446004000,-618.82677375,0.00037992,120]
[425046349,1781446004000,-158.38453138,0.00037992,120]
[425046347,1781446004000,-226.3992379,0.00037992,120]
[425046346,1781446004000,-11579.87673648,0.00037992,120]
[425046338,1781446004000,-1838.29261361,0.00037992,120]
[425046344,1781446004000,-168.07424588,0.00037992,120]
[425046345,1781446004000,-495.93695637,0.00037992,120]
[425046342,1781446004000,-152.75164059,0.00037992,120]
[425046341,1781446004000,-192.0,0.00037992,120]
[425046340,1781446004000,-164.02294601,0.00037992,120]
[425046339,1781446004000,-1105.0,0.00037992,120]
[425046337,1781446004000,-1126.0,0.00037992,30]
[425046343,1781446004000,-134877.19099429,0.00037992,60]
[425046365,1781446005000,-615.30835522,0.00037992,30]
[425046363,1781446005000,-282.7769472,0.00037992,120]
[425046364,1781446005000,-244.99428103,0.00037992,60]
[425046367,1781446005000,-697.63293075,0.00037992,120]
[425046369,1781446005000,-315.90672925,0.00037992,120]
[425046368,1781446005000,-21759.08283811,0.00037992,120]
[425046362,1781446005000,-251.91698554,0.00037992,120]
[425046366,1781446005000,-4643.3515684,0.00037992,120]
[425046361,1781446005000,-290.11130306,0.00037992,120]
[425046352,1781446005000,-9200.0,0.00037992,120]
[425046359,1781446005000,-1849.99190919,0.00037992,120]
[425046358,1781446005000,-311.87979511,0.00037992,120]
[425046357,1781446005000,-1994.90283584,0.00037992,120]
[425046355,1781446005000,-1116.20570037,0.00037992,30]
[425046356,1781446005000,-553.4171208,0.00037992,60]
[425046354,1781446005000,-250.25222948,0.00037992,30]
[425046353,1781446005000,-10599.6120465,0.00037992,120]
[425046360,1781446005000,-211.63086032,0.00037992,120]
[425046370,1781446005000,-297.49524257,0.00037992,60]
[425046385,1781446005000,-331.76544261,0.00037992,30]
[425046372,1781446005000,-1154.40235163,0.00037992,30]
[425046391,1781446005000,-340.82892705,0.00037992,120]
[425046371,1781446005000,-234.59944964,0.00037992,120]
[425046390,1781446005000,-1895.85673244,0.00037992,120]
[425046387,1781446005000,-434.13455281,0.00037992,60]
[425046388,1781446005000,-281.5959281,0.00037992,30]
[425046389,1781446005000,-455.01700101,0.00037992,30]
[425046382,1781446005000,-8645.1291509,0.00037992,30]
[425046383,1781446005000,-733.37192101,0.00037992,120]
[425046384,1781446005000,-322.96814042,0.00037992,120]
[425046386,1781446005000,-594.41578001,0.00037992,120]
[425046379,1781446005000,-1398.75356258,0.00037992,120]
[425046373,1781446005000,-758.85216297,0.00037992,120]
[425046381,1781446005000,-1730.94033429,0.00037992,30]
[425046377,1781446005000,-337.3169435,0.00037992,120]
[425046375,1781446005000,-632.34325627,0.00037992,120]
[425046374,1781446005000,-879.92211516,0.00037992,120]
[425046378,1781446005000,-538.59436478,0.00037992,120]
[425046380,1781446005000,-1544.93941955,0.00037992,30]
[425046376,1781446005000,-542.94532841,0.00037992,120]
[425046404,1781446006000,-1000.0,0.00037992,120]
[425046407,1781446006000,-1000.0,0.00037992,120]
[425046409,1781446006000,-1000.0,0.00037992,120]
[425046408,1781446006000,-1000.0,0.00037992,120]
[425046406,1781446006000,-1000.0,0.00037992,120]
[425046403,1781446006000,-1000.0,0.00037992,120]
[425046405,1781446006000,-1000.0,0.00037992,120]
[425046402,1781446006000,-1000.0,0.00037992,120]
[425046398,1781446006000,-308.13,0.00037992,120]
[425046392,1781446006000,-100416.29800668,0.00037992,60]
[425046399,1781446006000,-3131.0,0.00037992,120]
[425046400,1781446006000,-900.58901444,0.00037992,120]
[425046397,1781446006000,-6845.18,0.00037992,120]
[425046396,1781446006000,-9391.30293838,0.00037992,120]
[425046394,1781446006000,-150.0,0.00037992,120]
[425046395,1781446006000,-226.0,0.00037992,90]
[425046393,1781446006000,-633.02088332,0.00037992,30]
[425046412,1781446006000,-1000.0,0.00037992,120]
[425046401,1781446006000,-1000.0,0.00037992,120]
[425046410,1781446006000,-1000.0,0.00037992,120]
[425046430,1781446006000,-1394284.51856477,0.00037992,30]
[425046413,1781446006000,-1000.0,0.00037992,120]
[425046432,1781446006000,-49143.26329478,0.00037992,30]
[425046428,1781446006000,-486568.33144816,0.00037992,30]
[425046429,1781446006000,-66755.71447653,0.00037992,30]
[425046427,1781446006000,-80805.00860313,0.00037992,60]
[425046423,1781446006000,-242525.6459561,0.00037992,30]
[425046424,1781446006000,-24627.99431975,0.00037992,30]
[425046426,1781446006000,-3634.34687446,0.00037992,30]
[425046425,1781446006000,-100000.0,0.00037992,30]
[425046431,1781446006000,-11418.31064644,0.00037992,30]
[425046421,1781446006000,-44033.03489,0.00037992,60]
[425046422,1781446006000,-100000.0,0.00037992,30]
[425046414,1781446006000,-1000.0,0.00037992,120]
[425046416,1781446006000,-701.57,0.00037992,120]
[425046415,1781446006000,-1000.0,0.00037992,120]
[425046411,1781446006000,-1000.0,0.00037992,120]
[425046418,1781446006000,-25241.78402195,0.00037992,120]
[425046419,1781446006000,-207.0,0.00037992,30]
[425046420,1781446006000,-100000.0,0.00037992,30]
[425046417,1781446006000,-22000.0,0.00037992,120]
[425046445,1781446007000,-48056.695189,0.00037992,60]
[425046446,1781446007000,-3066.20289983,0.00037992,60]
[425046442,1781446007000,-26915.04625055,0.00037992,120]
[425046444,1781446007000,-250.0,0.00037992,30]
[425046443,1781446007000,-32966.062078,0.00037992,30]
[425046441,1781446007000,-5000.0,0.00037992,30]
[425046438,1781446007000,-21328.82694547,0.00037992,120]
[425046439,1781446007000,-59601.759451,0.00037992,60]
[425046437,1781446007000,-20836.55663283,0.00037992,120]
[425046435,1781446007000,-211717.14381491,0.00037992,30]
[425046433,1781446007000,-35834.20465044,0.00037992,60]
[425046434,1781446007000,-300000.0,0.00037992,30]
[425046448,1781446007000,-273379.16205969,0.00037992,30]
[425046440,1781446007000,-5000.0,0.00037992,30]
[425046436,1781446007000,-105299.58079487,0.00037992,30]
[425046450,1781446007000,-19488.40570322,0.00037992,30]
[425046449,1781446007000,-39750.0675933,0.00037992,30]
[425046447,1781446007000,-182381.35737915,0.00037992,30]
[425046464,1781446007000,-72929.78933915,0.00037992,30]
[425046460,1781446007000,-467181.05387437,0.00037992,30]
[425046462,1781446007000,-18160.65983378,0.00037992,30]
[425046461,1781446007000,-41546.85043452,0.00037992,30]
[425046459,1781446007000,-86134.3459369,0.00037992,30]
[425046457,1781446007000,-36225.22951076,0.00037992,30]
[425046463,1781446007000,-16298.06655285,0.00037992,30]
[425046456,1781446007000,-143221.15816779,0.00037992,30]
[425046455,1781446007000,-68813.72183477,0.00037992,30]
[425046454,1781446007000,-1206788.3534902,0.00037992,30]
[425046453,1781446007000,-15956.92356786,0.00037992,30]
[425046451,1781446007000,-59279.54726724,0.00037992,30]
[425046452,1781446007000,-39232.41256958,0.00037992,30]
[425046458,1781446007000,-57648.88575956,0.00037992,30]
[425046474,1781446008000,-1226.97258979,0.00037992,120]
[425046480,1781446008000,-1000.0,0.00037992,120]
[425046478,1781446008000,-1000.0,0.00037992,120]
[425046479,1781446008000,-500.95340029,0.00037992,120]
[425046477,1781446008000,-4005.5571538,0.00037992,120]
[425046475,1781446008000,-135052.69072426,0.00037992,30]
[425046476,1781446008000,-8430.0,0.00037992,30]
[425046473,1781446008000,-8173.8619628,0.00037992,30]
[425046465,1781446008000,-21000.0,0.00037992,30]
[425046472,1781446008000,-183.82,0.00037992,30]
[425046470,1781446008000,-305.29912898,0.00037992,120]
[425046469,1781446008000,-50000.0,0.00037992,100]
[425046468,1781446008000,-50000.0,0.00037992,95]
[425046467,1781446008000,-717.72747354,0.00037992,120]
[425046466,1781446008000,-17018.73340752,0.00037992,60]
[425046481,1781446008000,-1000.0,0.00037992,120]
[425046471,1781446008000,-3450.0,0.00037992,120]
[425046483,1781446008000,-500.0,0.00037992,120]
[425046485,1781446008000,-1000.0,0.00037992,120]
[425046484,1781446008000,-1000.0,0.00037992,120]
[425046482,1781446008000,-1000.0,0.00037992,120]
[425046499,1781446008000,-1000.0,0.00037992,120]
[425046500,1781446008000,-1000.0,0.00037992,120]
[425046497,1781446008000,-1000.0,0.00037992,120]
[425046498,1781446008000,-1000.0,0.00037992,120]
[425046496,1781446008000,-1000.0,0.00037992,120]
[425046493,1781446008000,-1000.0,0.00037992,120]
[425046495,1781446008000,-1000.0,0.00037992,120]
[425046502,1781446008000,-1000.0,0.00037992,120]
[425046492,1781446008000,-1000.0,0.00037992,120]
[425046490,1781446008000,-1000.0,0.00037992,120]
[425046491,1781446008000,-500.0,0.00037992,120]
[425046489,1781446008000,-1000.0,0.00037992,120]
[425046486,1781446008000,-1000.0,0.00037992,120]
[425046488,1781446008000,-1000.0,0.00037992,120]
[425046487,1781446008000,-1000.0,0.00037992,120]
[425046501,1781446008000,-1000.0,0.00037992,120]
[425046494,1781446008000,-1000.0,0.00037992,120]
[425046518,1781446009000,-500.0,0.00037992,120]
[425046515,1781446009000,-1000.0,0.00037992,120]
[425046513,1781446009000,-1000.0,0.00037992,120]
[425046516,1781446009000,-1000.0,0.00037992,120]
[425046514,1781446009000,-1000.0,0.00037992,120]
[425046512,1781446009000,-1000.0,0.00037992,120]
[425046511,1781446009000,-1000.0,0.00037992,120]
[425046508,1781446009000,-1000.0,0.00037992,120]
[425046510,1781446009000,-1000.0,0.00037992,120]
[425046505,1781446009000,-1000.0,0.00037992,120]
[425046507,1781446009000,-1000.0,0.00037992,120]
[425046506,1781446009000,-1000.0,0.00037992,120]
[425046503,1781446009000,-1000.0,0.00037992,120]
[425046504,1781446009000,-1000.0,0.00037992,120]
[425046519,1781446009000,-1000.0,0.00037992,120]
[425046509,1781446009000,-500.0,0.00037992,120]
[425046520,1781446009000,-1000.0,0.00037992,120]
[425046517,1781446009000,-1000.0,0.00037992,120]
[425046521,1781446009000,-1000.0,0.00037992,120]
[425046522,1781446009000,-1000.0,0.00037992,120]
[425046537,1781446009000,-1000.0,0.00037992,120]
[425046538,1781446009000,-500.0,0.00037992,120]
[425046536,1781446009000,-1000.0,0.00037992,120]
[425046535,1781446009000,-1000.0,0.00037992,120]
[425046532,1781446009000,-1000.0,0.00037992,120]
[425046534,1781446009000,-1000.0,0.00037992,120]
[425046531,1781446009000,-1000.0,0.00037992,120]
[425046533,1781446009000,-1000.0,0.00037992,120]
[425046528,1781446009000,-182.43846554,0.00037992,120]
[425046529,1781446009000,-182.43846554,0.00037992,120]
[425046526,1781446009000,-1000.0,0.00037992,120]
[425046527,1781446009000,-1000.0,0.00037992,120]
[425046525,1781446009000,-1000.0,0.00037992,120]
[425046524,1781446009000,-500.0,0.00037992,120]
[425046539,1781446009000,-216000.0,0.00037992,30]
[425046523,1781446009000,-1000.0,0.00037992,120]
[425046530,1781446009000,-1000.0,0.00037992,120]
[425046544,1781446010000,-797.83766242,0.00037992,30]
[425046540,1781446010000,-3093.0,0.00037992,60]
[425046542,1781446010000,-5000.0,0.00037992,120]
[425046541,1781446010000,-198.7833618,0.00037992,120]
[425046543,1781446010000,-797.0,0.00037992,30]
[425046549,1781446010000,-100000.0,0.00037992,30]
[425046547,1781446010000,-326.45,0.00037992,120]
[425046546,1781446010000,-2589.03505874,0.00037992,120]
[425046548,1781446010000,-217.94,0.00037992,120]
[425046551,1781446010000,-5023725.64167919,0.00037992,30]
[425046550,1781446010000,-150057.77905505,0.00037992,30]
[425046545,1781446010000,-3281.80479595,0.00037992,120]
[425046552,1781446027000,-151.0,0.00015626,2]
[425046560,1781446031000,-500.0,0.00016291,2]
[425046561,1781446031000,-500.0,0.00016291,2]
[425046558,1781446031000,-328.15610557,0.00016291,2]
[425046557,1781446031000,-113.54042205,0.00016291,2]
[425046554,1781446031000,-166.66,0.00016041,2]
[425046555,1781446031000,-310.06707777,0.00016291,2]
[425046553,1781446031000,-212.44710486,0.00015926,2]
[425046559,1781446031000,-500.0,0.00016291,2]
[425046556,1781446031000,-323.11222296,0.00016291,2]
[425046563,1781446031000,-500.0,0.00016291,2]
[425046562,1781446031000,-500.0,0.00016291,2]
[425046564,1781446031000,-500.0,0.00016291,2]
[425046565,1781446031000,-500.0,0.00016291,2]
[425046567,1781446031000,-500.0,0.00016291,2]
[425046566,1781446031000,-500.0,0.00016291,2]
[425046568,1781446031000,-500.0,0.00016291,2]
[425046571,1781446031000,-500.0,0.00016291,2]
[425046569,1781446031000,-500.0,0.00016291,2]
[425046570,1781446031000,-500.0,0.00016291,2]
[425046572,1781446031000,-500.0,0.00016291,2]
[425046573,1781446031000,-500.0,0.00016291,2]
[425046575,1781446032000,-500.0,0.00016291,2]
[425046574,1781446032000,-179.40602862,0.00016291,2]
[425046578,1781446032000,-492.43786581,0.00016291,2]
[425046577,1781446032000,-500.0,0.00016291,2]
[425046576,1781446032000,-500.0,0.00016291,2]
[425046585,1781446035000,-500.0,0.00016291,2]
[425046580,1781446035000,-500.0,0.00016291,2]
[425046579,1781446035000,-7.56213419,0.00016291,2]
[425046581,1781446035000,-500.0,0.00016291,2]
[425046582,1781446035000,-500.0,0.00016291,2]
[425046583,1781446035000,-500.0,0.00016291,2]
[425046584,1781446035000,-500.0,0.00016291,2]
[425046586,1781446035000,-500.0,0.00016291,2]
[425046588,1781446035000,-500.0,0.00016291,2]
[425046589,1781446035000,-500.0,0.00016291,2]
[425046590,1781446035000,-500.0,0.00016291,2]
[425046591,1781446035000,-500.0,0.00016291,2]
[425046592,1781446035000,-500.0,0.00016291,2]
[425046593,1781446035000,-500.0,0.00016291,2]
[425046595,1781446035000,-500.0,0.00016291,2]
[425046594,1781446035000,-500.0,0.00016291,2]
[425046587,1781446035000,-500.0,0.00016291,2]
[425046597,1781446036000,-500.0,0.00016291,2]
[425046599,1781446036000,-492.43786581,0.00016291,2]
[425046598,1781446036000,-500.0,0.00016291,2]
[425046596,1781446036000,-500.0,0.00016291,2]
[425046600,1781446039000,187.491189,0.00027708,120]
[425046606,1781446056000,-500.0,0.00016291,2]
[425046607,1781446056000,-500.0,0.00016291,2]
[425046608,1781446056000,-500.0,0.00016291,2]
[425046605,1781446056000,-500.0,0.00016291,2]
[425046609,1781446056000,-500.0,0.00016291,2]
[425046604,1781446056000,-500.0,0.00016291,2]
[425046602,1781446056000,-500.0,0.00016291,2]
[425046601,1781446056000,-7.56213419,0.00016291,2]
[425046603,1781446056000,-500.0,0.00016291,2]
[425046610,1781446056000,-500.0,0.00016291,2]
[425046620,1781446056000,-500.0,0.00016291,2]
[425046612,1781446056000,-500.0,0.00016291,2]
[425046613,1781446056000,-500.0,0.00016291,2]
[425046614,1781446056000,-500.0,0.00016291,2]
[425046615,1781446056000,-500.0,0.00016291,2]
[425046617,1781446056000,-500.0,0.00016291,2]
[425046616,1781446056000,-500.0,0.00016291,2]
[425046619,1781446056000,-262.94060286,0.00016291,2]
[425046621,1781446056000,-376.29406029,0.00016291,2]
[425046618,1781446056000,-500.0,0.00016291,2]
[425046611,1781446056000,-500.0,0.00016291,2]
[425046622,1781446057000,-353.20320266,0.00016291,2]
[425046623,1781446073000,-146.79679734,0.00016291,2]
[425046625,1781446075000,-500.0,0.00016291,2]
[425046624,1781446075000,-500.0,0.00016291,2]
[425046626,1781446075000,-500.0,0.00016291,2]
[425046627,1781446075000,-500.0,0.00016291,2]
[425046630,1781446075000,-500.0,0.00016291,2]
[425046628,1781446075000,-500.0,0.00016291,2]
[425046632,1781446075000,-494.57778841,0.00016295,2]
[425046631,1781446075000,-500.0,0.00016291,2]
[425046629,1781446075000,-500.0,0.00016291,2]
[425046633,1781446076000,-151.0,0.00016295,2]
[425046634,1781446076000,-153.0,0.00016296,2]
[425046635,1781446076000,-151.0,0.00016296,2]
[425046636,1781446076000,-151.0,0.00016296,2]
[425046640,1781446076000,-150.0,0.00016296,2]
[425046639,1781446076000,-152.0,0.00016296,2]
[425046638,1781446076000,-151.0,0.00016296,2]
[425046641,1781446076000,-150.0,0.00016297,2]
[425046643,1781446076000,-151.0,0.00016297,2]
[425046637,1781446076000,-151.0,0.00016296,2]
[425046644,1781446076000,-151.0,0.00016297,2]
[425046652,1781446076000,-138.42221159,0.00016298,2]
[425046651,1781446076000,-152.0,0.00016298,2]
[425046649,1781446076000,-151.0,0.00016298,2]
[425046650,1781446076000,-150.0,0.00016298,2]
[425046642,1781446076000,-151.0,0.00016297,2]
[425046647,1781446076000,-151.0,0.00016298,2]
[425046646,1781446076000,-150.0,0.00016297,2]
[425046645,1781446076000,-150.0,0.00016297,2]